fUSD/lending_fUSD_20250911
["ID","MTS","AMOUNT","RATE_DAILY","PERIOD"]
[384963532,1757634669108,-400.0,0.00027671,7]
[384963533,1757634669117,-400.0,0.00027671,7]
[384963534,1757634669127,-257.0,0.00027671,5]
[384963535,1757634669136,-400.0,0.00027671,7]
[384963536,1757634669146,-447.64,0.00027671,7]
[384963537,1757634669156,-400.0,0.00027671,7]
[384963538,1757634669166,-400.0,0.00027671,7]
[384963539,1757634669176,-151.0,0.00027671,7]
[384963540,1757634669187,-151.0,0.00027671,7]
[384963541,1757634669197,-151.0,0.00027671,7]
[384963542,1757634669206,-402.30957762,0.00027671,7]
[384963543,1757634669216,-400.0,0.00027671,7]
[384963544,1757634669226,-1200.45,0.00027671,7]
[384963545,1757634669236,-525.25,0.00027671,7]
[384963546,1757634669245,-400.0,0.00027671,7]
[384963547,1757634669258,-400.0,0.00027671,7]
[384963548,1757634669273,-400.0,0.00027671,7]
[384963549,1757634669284,-400.14,0.00027671,7]
[384963550,1757634669298,-468.1450216,0.00027671,7]
[384963551,1757634669309,-878.57,0.00027671,7]
[384963552,1757634669319,-400.0,0.00027671,7]
[384963553,1757634669328,-422.87,0.00027671,7]
[384963554,1757634669339,-401.65627879,0.00027671,7]
[384963555,1757634669348,-400.0,0.00027671,7]
[384963556,1757634669358,-400.0,0.00027671,7]
[384963557,1757634669368,-778.91,0.00027671,7]
[384963558,1757634669378,-284.16253322,0.00027671,7]
[384963559,1757634669388,-400.0,0.00027671,7]
[384963560,1757634669398,-1492.25,0.00027671,7]
[384963561,1757634669407,-810.76,0.00027671,7]
[384963562,1757634669418,-400.0,0.00027671,7]
[384963563,1757634669428,-2904.6,0.00027671,7]
[384963564,1757634669437,-400.0,0.00027671,7]
[384963565,1757634669447,-400.0,0.00027671,7]
[384963566,1757634669457,-414.52,0.00027671,7]
[384963567,1757634669467,-400.0,0.00027671,7]
[384963568,1757634669476,-400.0,0.00027671,7]
[384963569,1757634669486,-622.23,0.00027671,7]
[384963570,1757634669495,-1001.94,0.00027671,7]
[384963571,1757634669504,-400.0,0.00027671,7]
[384963572,1757634669514,-400.0,0.00027671,7]
[384963573,1757634669523,-181.779338,0.00027671,7]
[384963574,1757634669533,-400.0,0.00027671,7]
[384963575,1757634669542,-400.0,0.00027671,7]
[384963576,1757634669552,-1692.49,0.00027671,7]
[384963577,1757634669561,-400.0,0.00027671,7]
[384963578,1757634669570,-400.0,0.00027671,7]
[384963579,1757634669579,-400.0,0.00027671,7]
[384963580,1757634669589,-611.06,0.00027671,7]
[384963581,1757634669599,-1117.46,0.00027671,7]
[384963582,1757634669608,-400.0,0.00027671,7]
[384963583,1757634669618,-400.0,0.00027671,7]
[384963584,1757634669627,-421.80833439,0.00027671,7]
[384963585,1757634669637,-400.0,0.00027671,7]
[384963586,1757634669646,-1096.4,0.00027671,7]
[384963587,1757634669656,-400.0,0.00027671,7]
[384963588,1757634669665,-403.09576335,0.00027671,7]
[384963589,1757634669675,-400.0,0.00027671,7]
[384963590,1757634669684,-400.0,0.00027671,7]
[384963591,1757634669694,-1089.15,0.00027671,7]
[384963592,1757634669704,-738.47,0.00027671,7]
[384963593,1757634669714,-400.0,0.00027671,7]
[384963594,1757634669724,-400.0,0.00027671,7]
[384963595,1757634669734,-549.33,0.00027671,7]
[384963596,1757634669743,-400.0,0.00027671,7]
[384963597,1757634669752,-400.0,0.00027671,7]
[384963598,1757634669762,-400.0,0.00027671,7]
[384963599,1757634669772,-660.41,0.00027671,7]
[384963600,1757634669781,-776.68,0.00027671,7]
[384963601,1757634669791,-400.0,0.00027671,7]
[384963602,1757634669801,-400.0,0.00027671,7]
[384963603,1757634669811,-400.0,0.00027671,7]
[384963604,1757634669821,-400.0,0.00027671,7]
[384963605,1757634669831,-1476.09,0.00027671,7]
[384963606,1757634669840,-400.0,0.00027671,7]
[384963607,1757634669850,-402.95650179,0.00027671,7]
[384963608,1757634669860,-400.0,0.00027671,7]
[384963609,1757634669870,-400.0,0.00027671,7]
[384963610,1757634669879,-261.81342,0.00027671,7]
[384963611,1757634669890,-400.0,0.00027671,7]
[384963612,1757634669900,-151.0,0.00027671,7]
[384963613,1757634669911,-151.0,0.00027671,7]
[384963614,1757634669921,-400.0,0.00027671,7]
[384963615,1757634669931,-151.0,0.00027671,7]
[384963616,1757634669943,-151.0,0.00027671,7]
[384963617,1757634669955,-401.88016552,0.00027671,7]
[384963618,1757634669965,-400.0,0.00027671,7]
[384963619,1757634669974,-400.0,0.00027671,7]
[384963620,1757634669984,-151.0,0.00027671,7]
[384963621,1757634669994,-400.0,0.00027671,7]
[384963622,1757634670004,-151.0,0.00027671,7]
[384963623,1757634670013,-151.0,0.00027671,7]
[384963624,1757634670023,-837.03,0.00027671,7]
[384963625,1757634670033,-514.09,0.00027671,7]
[384963626,1757634670043,-802.43,0.00027671,7]
[384963627,1757634670053,-400.0,0.00027671,7]
[384963628,1757634670063,-622.33,0.00027671,7]
[384963629,1757634670073,-179.476328,0.00027671,7]
[384963631,1757634670083,-401.38208399,0.00027671,7]
[384963632,1757634670092,-151.0,0.00027671,7]
[384963633,1757634670102,-151.0,0.00027671,7]
[384963634,1757634670113,-151.0,0.00027671,7]
[384963635,1757634670123,-400.0,0.00027671,7]
[384963636,1757634670133,-369.4039349,0.00027671,7]
[384963638,1757634671832,-1900.0,0.00027396,7]
[384963639,1757634671843,-1000.0,0.00027397,7]
[384963640,1757634671852,-151.0,0.00027397,7]
[384963641,1757634671862,-3260.035092,0.00027397,7]
[384963642,1757634671871,-1802.879465,0.00027397,7]
[384963643,1757634671881,-400.0,0.00027397,7]
[384963644,1757634671891,-400.0,0.00027397,7]
[384963645,1757634671900,-454.89,0.00027397,7]
[384963646,1757634671911,-30.5960651,0.00027671,7]
[384963647,1757634671921,-151.0,0.00027671,7]
[384963648,1757634671932,-151.0,0.00027671,7]
[384963649,1757634671941,-694.54,0.00027671,7]
[384963650,1757634671953,-151.0,0.00027671,7]
[384963651,1757634671963,-842.86,0.00027671,7]
[384963652,1757634671973,-400.0,0.00027671,7]
[384963653,1757634671983,-151.0,0.00027671,7]
[384963654,1757634671993,-151.0,0.00027671,7]
[384963655,1757634672002,-151.0,0.00027671,7]
[384963656,1757634672012,-338.12794875,0.00027671,7]
[384963658,1757634672164,-1802.879465,0.00027397,7]
[384963659,1757634672174,-61.87205125,0.00027671,7]
[384963660,1757634672184,-404.82861563,0.00027671,7]
[384963661,1757634672193,-400.0,0.00027671,7]
[384963662,1757634672203,-1087.73,0.00027671,7]
[384963663,1757634672212,-1688.79,0.00027671,7]
[384963664,1757634672222,-151.0,0.00027671,7]
[384963665,1757634672230,-151.0,0.00027671,7]
[384963666,1757634672238,-151.0,0.00027671,7]
[384963667,1757634672247,-308.72138105,0.00027671,7]
[384963668,1757634672255,-762.77,0.00027671,7]
[384963669,1757634672264,-151.0,0.00027671,7]
[384963670,1757634672272,-151.0,0.00027671,7]
[384963671,1757634672281,-400.0,0.00027671,7]
[384963672,1757634672290,-756.17,0.00027671,7]
[384963673,1757634672306,-400.0,0.00027671,7]
[384963674,1757634672315,-400.0,0.00027671,7]
[384963675,1757634672324,-400.0,0.00027671,7]
[384963676,1757634672335,-502.44,0.00027671,7]
[384963677,1757634672344,-1453.02,0.00027671,7]
[384963678,1757634672354,-400.0,0.00027671,7]
[384963679,1757634672363,-400.0,0.00027671,7]
[384963680,1757634672374,-2802.57,0.00027671,7]
[384963681,1757634672383,-400.0,0.00027671,7]
[384963682,1757634672392,-400.0,0.00027671,7]
[384963683,1757634672402,-1525.88,0.00027671,7]
[384963684,1757634672411,-400.0,0.00027671,7]
[384963685,1757634672421,-1094.64,0.00027671,7]
[384963686,1757634672430,-400.0,0.00027671,7]
[384963687,1757634672440,-926.24,0.00027671,7]
[384963688,1757634672449,-733.8,0.00027671,7]
[384963689,1757634672460,-400.0,0.00027671,7]
[384963690,1757634672470,-564.53,0.00027671,7]
[384963691,1757634672479,-400.0,0.00027671,7]
[384963692,1757634672488,-1170.7,0.00027671,7]
[384963693,1757634672497,-263.27899848,0.00027671,7]
[384963694,1757634672506,-400.0,0.00027671,7]
[384963695,1757634672515,-400.0,0.00027671,7]
[384963696,1757634672525,-151.0,0.00027671,7]
[384963697,1757634672534,-1015.11,0.00027671,7]
[384963698,1757634672543,-151.0,0.00027671,7]
[384963699,1757634672552,-179.31,0.00027671,7]
[384963700,1757634672561,-400.0,0.00027671,7]
[384963701,1757634672570,-706.19,0.00027671,7]
[384963702,1757634672580,-400.0,0.00027671,7]
[384963703,1757634672589,-400.0,0.00027671,7]
[384963704,1757634672599,-400.0,0.00027671,7]
[384963705,1757634672608,-2367.91,0.00027671,7]
[384963706,1757634672618,-479.94,0.00027671,7]
[384963707,1757634672627,-763.51,0.00027671,7]
[384963708,1757634672637,-400.0,0.00027671,7]
[384963709,1757634672646,-991.41,0.00027671,7]
[384963710,1757634672654,-1257.44,0.00027671,7]
[384963711,1757634672662,-400.0,0.00027671,7]
[384963712,1757634672672,-400.0,0.00027671,7]
[384963713,1757634672682,-400.0,0.00027671,7]
[384963714,1757634672691,-400.0,0.00027671,7]
[384963715,1757634672700,-401.74,0.00027671,7]
[384963716,1757634672710,-400.0,0.00027671,7]
[384963717,1757634672719,-561.01,0.00027671,7]
[384963718,1757634672727,-257.81170182,0.00027671,7]
[384963719,1757634672737,-688.99,0.00027671,7]
[384963720,1757634672746,-400.0,0.00027671,7]
[384963721,1757634672755,-400.0,0.00027671,7]
[384963722,1757634672764,-400.0,0.00027671,7]
[384963723,1757634672773,-864.09,0.00027671,7]
[384963724,1757634672783,-400.0,0.00027671,7]
[384963725,1757634672792,-400.0,0.00027671,7]
[384963726,1757634672801,-400.0,0.00027671,7]
[384963727,1757634672811,-400.0,0.00027671,7]
[384963728,1757634672820,-400.0,0.00027671,7]
[384963729,1757634672829,-720.52,0.00027671,7]
[384963730,1757634672839,-665.33,0.00027671,7]
[384963731,1757634672848,-788.92,0.00027671,7]
[384963732,1757634672858,-958.86,0.00027671,7]
[384963733,1757634672867,-1494.79,0.00027671,7]
[384963734,1757634672879,-1287.95,0.00027671,7]
[384963735,1757634672888,-400.0,0.00027671,7]
[384963736,1757634672897,-1034.61,0.00027671,7]
[384963737,1757634672906,-400.0,0.00027671,7]
[384963738,1757634672916,-400.0,0.00027671,7]
[384963739,1757634672925,-400.0,0.00027671,7]
[384963740,1757634672935,-1151.82,0.00027671,7]
[384963741,1757634672944,-400.0,0.00027671,7]
[384963742,1757634672953,-400.0,0.00027671,7]
[384963743,1757634672962,-400.0,0.00027671,7]
[384963744,1757634672972,-151.0,0.00027671,7]
[384963745,1757634672981,-151.0,0.00027671,7]
[384963746,1757634672990,-400.0,0.00027671,7]
[384963747,1757634672999,-400.0,0.00027671,7]
[384963748,1757634673008,-400.0,0.00027671,7]
[384963749,1757634673017,-866.42,0.00027671,7]
[384963750,1757634673027,-400.0,0.00027671,7]
[384963751,1757634673035,-400.0,0.00027671,7]
[384963752,1757634673044,-663.48,0.00027671,7]
[384963753,1757634673054,-400.0,0.00027671,7]
[384963754,1757634673063,-151.0,0.00027671,7]
[384963755,1757634673085,-400.0,0.00027671,7]
[384963756,1757634673094,-400.0,0.00027671,7]
[384963757,1757634673103,-407.44,0.00027671,7]
[384963758,1757634673112,-1020.13,0.00027671,7]
[384963759,1757634673121,-400.0,0.00027671,7]
[384963760,1757634673129,-412.44,0.00027671,7]
[384963761,1757634673139,-400.0,0.00027671,7]
[384963762,1757634673147,-872.6,0.00027671,7]
[384963763,1757634673157,-400.0,0.00027671,7]
[384963764,1757634673168,-809.73,0.00027671,7]
[384963765,1757634673182,-500.0,0.00027671,2]
[384963766,1757634673197,-400.0,0.00027671,7]
[384963767,1757634673209,-1048.28,0.00027671,7]
[384963768,1757634673222,-1119.41,0.00027671,7]
[384963769,1757634673236,-400.0,0.00027671,7]
[384963770,1757634673250,-1879.33,0.00027671,7]
[384963771,1757634673265,-357.55014153,0.00027671,7]
[384963772,1757634673277,-400.0,0.00027671,7]
[384963773,1757634673289,-400.0,0.00027671,7]
[384963774,1757634673305,-1177.57,0.00027671,7]
[384963775,1757634673318,-518.34,0.00027671,7]
[384963776,1757634673332,-400.0,0.00027671,7]
[384963777,1757634673346,-400.0,0.00027671,7]
[384963778,1757634673361,-400.0,0.00027671,7]
[384963779,1757634673375,-151.0,0.00027671,7]
[384963780,1757634673389,-400.0,0.00027671,7]
[384963781,1757634673403,-273.30281,0.00027671,7]
[384963782,1757634673417,-400.0,0.00027671,7]
[384963783,1757634673430,-400.0,0.00027671,7]
[384963784,1757634673442,-400.0,0.00027671,7]
[384963785,1757634673455,-400.0,0.00027671,7]
[384963786,1757634673470,-400.0,0.00027671,7]
[384963787,1757634673482,-853.93,0.00027671,7]
[384963788,1757634673495,-771.97,0.00027671,7]
[384963789,1757634673506,-400.0,0.00027671,7]
[384963790,1757634673517,-400.0,0.00027671,7]
[384963791,1757634673532,-968.36,0.00027671,7]
[384963792,1757634673545,-945.58,0.00027671,7]
[384963793,1757634673555,-464.64,0.00027671,7]
[384963794,1757634673567,-1753.63,0.00027671,7]
[384963795,1757634673580,-459.72,0.00027671,7]
[384963796,1757634673594,-408.07,0.00027671,7]
[384963797,1757634673605,-400.0,0.00027671,7]
[384963798,1757634673615,-410.50911769,0.00027671,7]
[384963799,1757634673628,-753.83,0.00027671,7]
[384963800,1757634673639,-400.0,0.00027671,7]
[384963801,1757634673651,-400.0,0.00027671,7]
[384963802,1757634673669,-539.09708257,0.00027671,7]
[384963803,1757634673680,-1270.5,0.00027671,7]
[384963804,1757634673692,-151.0,0.00027671,7]
[384963805,1757634673704,-151.0,0.00027671,7]
[384963806,1757634673716,-400.0,0.00027671,7]
[384963807,1757634673728,-151.0,0.00027671,7]
[384963808,1757634673740,-568.07,0.00027671,7]
[384963809,1757634673753,-151.0,0.00027671,7]
[384963810,1757634673765,-1402.04,0.00027671,7]
[384963811,1757634673778,-151.0,0.00027671,7]
[384963812,1757634673791,-850.99,0.00027671,7]
[384963813,1757634673803,-151.0,0.00027671,7]
[384963814,1757634673815,-151.0,0.00027671,7]
[384963815,1757634673829,-151.0,0.00027671,7]
[384963816,1757634673840,-997.25,0.00027671,7]
[384963817,1757634673852,-400.0,0.00027671,7]
[384963818,1757634673863,-3228.61,0.00027671,7]
[384963819,1757634673874,-948.18,0.00027671,7]
[384963820,1757634673886,-401.82519822,0.00027671,7]
[384963821,1757634673897,-400.0,0.00027671,7]
[384963822,1757634673910,-400.0,0.00027671,7]
[384963823,1757634673922,-1899.51,0.00027671,7]
[384963824,1757634673936,-400.0,0.00027671,7]
[384963825,1757634673949,-976.45,0.00027671,7]
[384963826,1757634673961,-850.84,0.00027671,7]
[384963827,1757634673972,-1110.37,0.00027671,7]
[384963828,1757634673984,-400.0,0.00027671,7]
[384963829,1757634673996,-400.0,0.00027671,7]
[384963830,1757634674008,-400.0,0.00027671,7]
[384963831,1757634674020,-882.97,0.00027671,7]
[384963832,1757634674033,-400.0,0.00027671,7]
[384963833,1757634674046,-400.0,0.00027671,7]
[384963834,1757634674058,-513.90749885,0.00027671,7]
[384963835,1757634674070,-400.0,0.00027671,7]
[384963836,1757634674082,-2643.62,0.00027671,7]
[384963837,1757634674094,-540.6,0.00027671,7]
[384963838,1757634674106,-400.0,0.00027671,7]
[384963839,1757634674119,-1511.84,0.00027671,7]
[384963840,1757634674130,-400.0,0.00027671,7]
[384963841,1757634674142,-400.0,0.00027671,7]
[384963842,1757634674155,-400.0,0.00027671,7]
[384963843,1757634674167,-473.41,0.00027671,7]
[384963844,1757634674179,-400.0,0.00027671,7]
[384963845,1757634674192,-402.50228224,0.00027671,7]
[384963846,1757634674205,-400.0,0.00027671,7]
[384963847,1757634674217,-861.72,0.00027671,7]
[384963848,1757634674229,-400.0,0.00027671,7]
[384963849,1757634674242,-6542.94,0.00027671,7]
[384963850,1757634674254,-400.0,0.00027671,7]
[384963851,1757634674265,-510.47,0.00027671,7]
[384963852,1757634674278,-400.0,0.00027671,7]
[384963853,1757634674290,-400.0,0.00027671,7]
[384963854,1757634674306,-400.0,0.00027671,7]
[384963855,1757634674318,-890.0,0.00027671,7]
[384963856,1757634674330,-1274.23,0.00027671,7]
[384963857,1757634674344,-400.0,0.00027671,7]
[384963858,1757634674355,-400.0,0.00027671,7]
[384963859,1757634674367,-400.0,0.00027671,7]
[384963860,1757634674379,-1682.08,0.00027671,7]
[384963861,1757634674391,-400.0,0.00027671,7]
[384963862,1757634674403,-400.0,0.00027671,7]
[384963863,1757634674414,-1166.68,0.00027671,7]
[384963864,1757634674426,-400.0,0.00027671,7]
[384963865,1757634674437,-400.0,0.00027671,7]
[384963866,1757634674450,-414.17,0.00027671,7]
[384963867,1757634674461,-400.0,0.00027671,7]
[384963868,1757634674473,-400.0,0.00027671,7]
[384963869,1757634674484,-914.74,0.00027671,7]
[384963870,1757634674496,-400.0,0.00027671,7]
[384963871,1757634674507,-400.0,0.00027671,7]
[384963872,1757634674519,-400.0,0.00027671,7]
[384963873,1757634674530,-964.06,0.00027671,7]
[384963874,1757634674543,-400.0,0.00027671,7]
[384963875,1757634674554,-400.0,0.00027671,7]
[384963876,1757634674566,-626.72,0.00027671,7]
[384963877,1757634674577,-400.0,0.00027671,7]
[384963878,1757634674588,-400.0,0.00027671,7]
[384963879,1757634674599,-237.17406909,0.00027671,7]
[384963880,1757634674612,-400.0,0.00027671,7]
[384963881,1757634674623,-525.96,0.00027671,7]
[384963882,1757634674634,-730.43,0.00027671,7]
[384963883,1757634674645,-1801.99,0.00027671,7]
[384963884,1757634674656,-400.0,0.00027671,7]
[384963885,1757634674668,-400.0,0.00027671,7]
[384963886,1757634674679,-400.0,0.00027671,7]
[384963887,1757634674691,-400.0,0.00027671,7]
[384963888,1757634674703,-3074.0,0.00027671,7]
[384963889,1757634674715,-1242.11,0.00027671,7]
[384963890,1757634674727,-400.0,0.00027671,7]
[384963891,1757634674738,-400.0,0.00027671,7]
[384963892,1757634674749,-1349.75,0.00027671,7]
[384963893,1757634674761,-400.0,0.00027671,7]
[384963894,1757634674772,-412.33789812,0.00027671,7]
[384963895,1757634674783,-400.0,0.00027671,7]
[384963896,1757634674795,-400.0,0.00027671,7]
[384963897,1757634674806,-400.0,0.00027671,7]
[384963898,1757634674817,-400.0,0.00027671,7]
[384963899,1757634674828,-400.0,0.00027671,7]
[384963900,1757634674839,-2184.5,0.00027671,7]
[384963901,1757634674851,-400.0,0.00027671,7]
[384963902,1757634674862,-400.0,0.00027671,7]
[384963903,1757634674873,-400.0,0.00027671,7]
[384963904,1757634674884,-400.0,0.00027671,7]
[384963905,1757634674895,-195.46,0.00027671,7]
[384963906,1757634674907,-400.0,0.00027671,7]
[384963907,1757634674918,-514.87,0.00027671,7]
[384963908,1757634674930,-400.0,0.00027671,7]
[384963909,1757634674941,-151.0,0.00027671,7]
[384963910,1757634674953,-939.89,0.00027671,7]
[384963911,1757634674964,-3479.41,0.00027671,7]
[384963912,1757634674976,-1406.91,0.00027671,7]
[384963913,1757634674988,-791.34,0.00027671,7]
[384963914,1757634674999,-400.0,0.00027671,7]
[384963915,1757634675011,-1449.7,0.00027671,7]
[384963916,1757634675023,-151.0,0.00027671,7]
[384963917,1757634675035,-151.0,0.00027671,7]
[384963918,1757634675046,-400.0,0.00027671,7]
[384963919,1757634675058,-904.46,0.00027671,7]
[384963920,1757634675069,-400.0,0.00027671,7]
[384963921,1757634675082,-400.0,0.00027671,7]
[384963922,1757634675094,-449.17,0.00027671,7]
[384963923,1757634675106,-400.0,0.00027671,7]
[384963924,1757634675118,-1447.85,0.00027671,7]
[384963925,1757634675129,-1115.64,0.00027671,7]
[384963926,1757634675141,-400.0,0.00027671,7]
[384963927,1757634675153,-1114.59,0.00027671,7]
[384963928,1757634675164,-400.0,0.00027671,7]
[384963929,1757634675176,-535.28,0.00027671,7]
[384963930,1757634675188,-400.89388365,0.00027671,7]
[384963931,1757634675200,-400.0,0.00027671,7]
[384963932,1757634675211,-2271.39,0.00027671,7]
[384963933,1757634675223,-400.0,0.00027671,7]
[384963934,1757634675235,-400.0,0.00027671,7]
[384963935,1757634675247,-400.08,0.00027671,7]
[384963936,1757634675258,-905.93,0.00027671,7]
[384963937,1757634675270,-805.49,0.00027671,7]
[384963938,1757634675282,-400.0,0.00027671,7]
[384963939,1757634675295,-1457.28,0.00027671,7]
[384963940,1757634675306,-835.92,0.00027671,7]
[384963941,1757634675318,-400.0,0.00027671,7]
[384963942,1757634675329,-400.0,0.00027671,7]
[384963943,1757634675341,-400.0,0.00027671,7]
[384963944,1757634675352,-498.08,0.00027671,7]
[384963945,1757634675364,-2089.18,0.00027671,7]
[384963946,1757634675376,-400.0,0.00027671,7]
[384963947,1757634675388,-931.48,0.00027671,7]
[384963948,1757634675399,-400.0,0.00027671,7]
[384963949,1757634675411,-151.0,0.00027671,7]
[384963950,1757634675423,-400.0,0.00027671,7]
[384963951,1757634675435,-400.0,0.00027671,7]
[384963952,1757634675447,-1269.58,0.00027671,7]
[384963953,1757634675459,-400.0,0.00027671,7]
[384963954,1757634675471,-258.23035809,0.00027671,7]
[384963955,1757634675484,-400.0,0.00027671,7]
[384963956,1757634675495,-151.0,0.00027671,7]
[384963957,1757634675508,-400.0,0.00027671,7]
[384963958,1757634675519,-154.358007,0.00027671,7]
[384963959,1757634675531,-432.65782196,0.00027671,7]
[384963960,1757634675543,-1217.85,0.00027671,7]
[384963961,1757634675554,-1163.58,0.00027671,7]
[384963962,1757634675566,-1065.81,0.00027671,7]
[384963963,1757634675578,-670.44,0.00027671,7]
[384963964,1757634675589,-151.0,0.00027671,7]
[384963965,1757634675601,-1026.29,0.00027671,7]
[384963966,1757634675612,-400.0,0.00027671,7]
[384963967,1757634675623,-1541.49,0.00027671,7]
[384963968,1757634675634,-400.0,0.00027671,7]
[384963969,1757634675646,-400.0,0.00027671,7]
[384963970,1757634675659,-400.0,0.00027671,7]
[384963971,1757634675671,-859.36,0.00027671,7]
[384963972,1757634675683,-3068.96,0.00027671,7]
[384963973,1757634675694,-400.0,0.00027671,7]
[384963974,1757634675703,-1775.61,0.00027671,7]
[384963975,1757634675712,-1583.32,0.00027671,7]
[384963976,1757634675721,-400.0,0.00027671,7]
[384963977,1757634675730,-400.0,0.00027671,7]
[384963978,1757634675739,-400.0,0.00027671,7]
[384963979,1757634675748,-400.0,0.00027671,7]
[384963980,1757634675756,-400.0,0.00027671,7]
[384963981,1757634675765,-400.0,0.00027671,7]
[384963982,1757634675774,-400.0,0.00027671,7]
[384963983,1757634675783,-400.0,0.00027671,7]
[384963984,1757634675792,-400.0,0.00027671,7]
[384963985,1757634675801,-400.0,0.00027671,7]
[384963986,1757634675811,-411.41,0.00027671,7]
[384963987,1757634675820,-908.3,0.00027671,7]
[384963988,1757634675829,-400.0,0.00027671,7]
[384963989,1757634675839,-1038.14,0.00027671,7]
[384963990,1757634675849,-2444.19,0.00027671,7]
[384963991,1757634675859,-400.0,0.00027671,7]
[384963992,1757634675868,-487.17,0.00027671,7]
[384963993,1757634675877,-818.77,0.00027671,7]
[384963994,1757634675887,-250.72368471,0.00027671,7]
[384963995,1757634675896,-400.0,0.00027671,7]
[384963996,1757634675905,-1014.27,0.00027671,7]
[384963997,1757634675914,-1115.29,0.00027671,7]
[384963998,1757634675923,-400.0,0.00027671,7]
[384963999,1757634675933,-400.0,0.00027671,7]
[384964000,1757634675942,-400.0,0.00027671,7]
[384964001,1757634675950,-729.08,0.00027671,7]
[384964002,1757634675959,-400.0,0.00027671,7]
[384964003,1757634675968,-400.0,0.00027671,7]
[384964004,1757634675977,-151.0,0.00027671,7]
[384964005,1757634675986,-371.42092428,0.00027671,7]
[384964006,1757634675995,-151.0,0.00027671,7]
[384964007,1757634676005,-400.0,0.00027671,7]
[384964008,1757634676015,-400.0,0.00027671,7]
[384964009,1757634676024,-400.0,0.00027671,7]
[384964010,1757634676034,-400.0,0.00027671,7]
[384964011,1757634676043,-400.0,0.00027671,7]
[384964012,1757634676053,-400.0,0.00027671,7]
[384964013,1757634676062,-400.0,0.00027671,7]
[384964014,1757634676071,-687.67,0.00027671,7]
[384964015,1757634676080,-400.0,0.00027671,7]
[384964016,1757634676089,-402.71867143,0.00027671,7]
[384964017,1757634676098,-1476.65,0.00027671,7]
[384964018,1757634676108,-410.90063412,0.00027671,7]
[384964019,1757634676117,-400.0,0.00027671,7]
[384964020,1757634676126,-776.19,0.00027671,7]
[384964021,1757634676135,-400.0,0.00027671,7]
[384964022,1757634676144,-400.0,0.00027671,7]
[384964023,1757634676153,-400.0,0.00027671,7]
[384964024,1757634676162,-401.9596398,0.00027671,7]
[384964025,1757634676171,-2576.22,0.00027671,7]
[384964026,1757634676180,-2134.11,0.00027671,7]
[384964027,1757634676189,-400.0,0.00027671,7]
[384964028,1757634676198,-400.0,0.00027671,7]
[384964029,1757634676207,-400.0,0.00027671,7]
[384964030,1757634676216,-1259.32,0.00027671,7]
[384964031,1757634676225,-400.0,0.00027671,7]
[384964032,1757634676234,-4563.77,0.00027671,7]
[384964033,1757634676243,-400.0,0.00027671,7]
[384964034,1757634676252,-400.0,0.00027671,7]